Workbook

Sheet Zadání
C3: 1. Na listu Cyklický odkaz vytvořte zjednodušenou mapu, ve které hodnota v buňce je průměrem osmi okolních hodnot. Vyplněné buňky nepřepisujte.
C4: 2. Použijte funkci Podmíněné formátování pro barevné zvýraznění rozdílů v buňkách mapy.
C5: 3. Na listu PAHy najdete měsíční koncentrace polyaromatických uhlovodíků v letech 2003-2012.
C6: 4. Na listu PAHy vyberte oblast B3:F3 a zahajte záznam makra, které pojmenujete Graf.
C7: 5. V režimu záznamu makra vytvořte sloupcový graf o čtyřech sloupcích udávajících koncentrace PAHů dne 15.10.2003, bez legendy s popisy osy x z řádku 2 a názvem grafu odpovídajícím kalendářnímu datu.
C8: 6. Přiřaďte makru klávesovou zkratku Ctrl+Shift+Q.
C9: 7. Přemístěte kurzor do buňky B4 a pomocí klávesové zkratky spusťte makro Graf za účelem vytvoření grafu obsahujícího údaje z řádku 4.
C10: 8. Pokud makro neproběhlo, otevřete okno ditoru Visual Basic a pomocí funkce Debug vyhledejte a pokuste se opravit chybu.
C11: 9. Proběhlo-li makro, komentujte, co bylo vykonáno v rozporu s naším požadavkem.
C12: 10. Využijte funkce ActiveCell.Offset() pro relativizaci příslušných vybraných oblastí tak, aby makro kreslilo vždy graf z vybraného řádku.
C13: 11. Vytvořte pomocí Visual Basic IDE vlastní funkci Prvocislo s jedním argumentem, která vrátí hodnotu 0 pokud není argument prvočíslo a hodnotu 1, pokud je prvočíslo.
C14: 12. Využijte cyklus zadaný příkazem For, funkci Sqr pro odmocninu a funkci Mod pro dělení se zbytkem.
C15: 13. Vytvořte vlastní formulář se čtveřicí tlačítek nazvaných Žlutá, Červená, Modrá a Zelená, po jejichž stisknutí se níže vyznačená buňka zbarví příslušnou barvou.
D17: Tato buňka bude obarvena.

Sheet Cyklický odkaz
C3: Povolte na kartě Vzorce v Možnostech nastavení aplikace Excel iterativní přepočet a nastavte počet iterací na 100.
C4: V mapě 30 × 30 polí níže vložte do prázdných buněk vzorec, který spočítá hodnotu buňky jako průměr okolních 8 buněk.
C5: Buňky u krajů budou průměrem 5 okolních a buňky v rozích 3 okolních buněk.
C6: Použijte funkci Podmíněné formátování pro barevné zvýraznění rozdílů v buňkách mapy.
C8: =AVERAGE(D8:D9,C9) -> 76.02740621 | D8: =AVERAGE(C8:C9,D9,E8:E9) -> 75.99230263 | E8: =AVERAGE(D8:D9,E9,F8:F9) -> 75.89402664 | F8: 75.70438934 | G8: 75.37404828 | H8: 74.83061364 | I8: 73.98363393 | J8: 72.7401996 | K8: 71.02924036 | L8: 68.8244278 | M8: 66.15381294 | N8: 63.09042702 | O8: 59.73007134 | P8: 56.16875288 | Q8: 52.490719 | R8: 48.77022722 | S8: 45.08453101 | T8: 41.5297705 | U8: 38.2283111 | V8: 35.31320466 | W8: 32.8904664 | X8: 30.99587116 | Y8: 29.57823758 | Z8: 28.52033141 | AA8: 27.68626909 | AB8: 26.96352728 | AC8: 26.28299929 | AD8: 25.61644051 | AE8: 24.9647151 | AF8: 24.34557449 | AG8: 23.78462748 | AH8: 23.30896873 | AI8: 22.94289363 | AJ8: 22.70529037 | AK8: =AVERAGE(AJ8:AJ9,AK9) -> 22.60831649
C9: =AVERAGE(C8:D8,D9,D10,C10) -> 76.0591553 | D9: =AVERAGE(E8:E10,D8,D10,C8:C10) -> 76.03061411 | E9: =AVERAGE(F8:F10,E8,E10,D8:D10) -> 75.95012274 | F9: =AVERAGE(G8:G10,F8,F10,E8:E10) -> 75.79253212 | G9: =AVERAGE(H8:H10,G8,G10,F8:F10) -> 75.51106797 | H9: =AVERAGE(I8:I10,H8,H10,G8:G10) -> 75.0315196 | I9: =AVERAGE(J8:J10,I8,I10,H8:H10) -> 74.25271587 | J9: =AVERAGE(K8:K10,J8,J10,I8:I10) -> 73.06307941 | K9: =AVERAGE(L8:L10,K8,K10,J8:J10) -> 71.37233155 | L9: =AVERAGE(M8:M10,L8,L10,K8:K10) -> 69.14621347 | M9: =AVERAGE(N8:N10,M8,M10,L8:L10) -> 66.42063857 | N9: =AVERAGE(O8:O10,N8,N10,M8:M10) -> 63.28750317 | O9: =AVERAGE(P8:P10,O8,O10,N8:N10) -> 59.86030021 | P9: =AVERAGE(Q8:Q10,P8,P10,O8:O10) -> 56.24360754 | Q9: =AVERAGE(R8:R10,Q8,Q10,P8:P10) -> 52.51933961 | R9: =AVERAGE(S8:S10,R8,R10,Q8:Q10) -> 48.75197574 | S9: =AVERAGE(T8:T10,S8,S10,R8:R10) -> 45.00490867 | T9: =AVERAGE(U8:U10,T8,T10,S8:S10) -> 41.3661363 | U9: =AVERAGE(V8:V10,U8,U10,T8:T10) -> 37.96535092 | V9: =AVERAGE(W8:W10,V8,V10,U8:U10) -> 34.96749939 | W9: =AVERAGE(X8:X10,W8,W10,V8:V10) -> 32.51482336 | X9: =AVERAGE(Y8:Y10,X8,X10,W8:W10) -> 30.66138546 | Y9: =AVERAGE(Z8:Z10,Y8,Y10,X8:X10) -> 29.33492206 | Z9: =AVERAGE(AA8:AA10,Z8,Z10,Y8:Y10) -> 28.37918578 | AA9: =AVERAGE(AB8:AB10,AA8,AA10,Z8:Z10) -> 27.6235792 | AB9: =AVERAGE(AC8:AC10,AB8,AB10,AA8:AA10) -> 26.94528464 | AC9: =AVERAGE(AD8:AD10,AC8,AC10,AB8:AB10) -> 26.28008928 | AD9: =AVERAGE(AE8:AE10,AD8,AD10,AC8:AC10) -> 25.61025735 | AE9: =AVERAGE(AF8:AF10,AE8,AE10,AD8:AD10) -> 24.94475695 | AF9: =AVERAGE(AG8:AG10,AF8,AF10,AE8:AE10) -> 24.30717023 | AG9: =AVERAGE(AH8:AH10,AG8,AG10,AF8:AF10) -> 23.7272318 | AH9: =AVERAGE(AI8:AI10,AH8,AH10,AG8:AG10) -> 23.23482373 | AI9: =AVERAGE(AJ8:AJ10,AI8,AI10,AH8:AH10) -> 22.85589912 | AJ9: =AVERAGE(AK8:AK10,AJ8,AJ10,AI8:AI10) -> 22.61011762 | AK9: =AVERAGE(AJ8:AK8,AJ9,AJ10:AK10) -> 22.50985494
C10: =AVERAGE(C9:D9,D10,D11,C11) -> 76.12944658 | D10: 76.11585701 | E10: 76.07640283 | F10: 75.99468009 | G10: 75.83536528 | H10: 75.52527171 | I10: 74.93935246 | J10: 73.9080097 | K10: 72.27914924 | L10: 69.98837665 | M10: 67.10182169 | N10: 63.77266353 | O10: 60.17047267 | P10: 56.41912816 | Q10: 52.59033926 | R10: 48.72026326 | S10: 44.83580213 | T10: 40.98091018 | U10: 37.29987134 | V10: =AVERAGE(W9:W11,V9,V11,U9:U11) -> 34.03748602 | W10: =AVERAGE(X9:X11,W9,W11,V9:V11) -> 31.49088151 | X10: =AVERAGE(Y9:Y11,X9,X11,W9:W11) -> 29.76221505 | Y10: 28.72411731 | Z10: 28.05851482 | AA10: 27.50802843 | AB10: 26.92803424 | AC10: 26.29031592 | AD10: 25.60443873 | AE10: 24.89889973 | AF10: 24.21116474 | AG10: 23.58100181 | AH10: 23.0451358 | AI10: 22.63344454 | AJ10: 22.36713089 | AK10: 22.25872195
C11: 76.2176717 | D11: 76.22377955 | E11: 76.23946322 | F11: 76.26398947 | G11: 76.28833601 | H11: 76.27539416 | I11: 76.06832704 | J11: 75.3904475 | K11: 73.89866371 | L11: 71.46610689 | M11: 68.22216928 | N11: 64.51102869 | O11: 60.60754441 | P11: 56.66221692 | Q11: 52.69945265 | R11: 48.70700969 | S11: 44.65358333 | T11: 40.50195359 | U11: 36.2200111 | V11: 32.35996767 | W11: 29.48183781 | X11: 28.14221191 | Y11: 27.74794608 | Z11: 27.70700014 | AA11: 27.44381984 | AB11: 26.97932131 | AC11: 26.35437285 | AD11: 25.62128504 | AE11: 24.83610166 | AF11: 24.05660022 | AG11: 23.33813716 | AH11: 22.7283344 | AI11: 22.26279763 | AJ11: 21.96390001 | AK11: 21.84289285
C12: 76.29705923 | D12: 76.32205536 | E12: 76.3920729 | F12: 76.52667667 | G12: 76.7587498 | H12: 77.12642162 | I12: 77.66122555 | J12: 77.72043005 | K12: 76.64840202 | L12: 73.78841225 | M12: 69.80192983 | N12: 65.34712816 | O12: 61.0646555 | P12: 56.9132564 | Q12: 52.83311614 | R12: 48.75055089 | S12: 44.57325215 | T12: 40.15922153 | U12: 35.29327824 | V12: 29.12769427 | W12: 25.92897073 | X12: 25.0055761 | Y12: 26.99649163 | Z12: 27.58783369 | AA12: 27.58969056 | AB12: 27.19261215 | AC12: 26.52819902 | AD12: 25.6912972 | AE12: 24.76718817 | AF12: 23.83847961 | AG12: 22.98237273 | AH12: 22.26255296 | AI12: 21.72177723 | AJ12: 21.38064871 | AK12: 21.24432824
C13: 76.34246859 | D13: 76.37915606 | E13: 76.48455874 | F13: 76.69670655 | G13: 77.08936143 | H13: 77.80296626 | I13: 79.06690118 | J13: 81.83884475 | K13: 81.19059951 | L13: 77.89372597 | M13: 71.18575796 | N13: 66.00120822 | O13: 61.38287 | P13: 57.09216732 | Q13: 52.96423789 | R13: 48.87627494 | S13: 44.69773866 | T13: 40.23995433 | U13: 35.09426957 | V13: 28.64340232 | W13: 10 | X13: =AVERAGE(Y12:Y14,X12,X14,W12:W14) -> 24.67126873 | Y13: =AVERAGE(Z12:Z14,Y12,Y14,X12:X14) -> 27.07612314 | Z13: =AVERAGE(AA12:AA14,Z12,Z14,Y12:Y14) -> 28.03432368 | AA13: =AVERAGE(AB12:AB14,AA12,AA14,Z12:Z14) -> 28.10767613 | AB13: =AVERAGE(AC12:AC14,AB12,AB14,AA12:AA14) -> 27.66537499 | AC13: =AVERAGE(AD12:AD14,AC12,AC14,AB12:AB14) -> 26.87290487 | AD13: =AVERAGE(AE12:AE14,AD12,AD14,AC12:AC14) -> 25.84890293 | AE13: =AVERAGE(AF12:AF14,AE12,AE14,AD12:AD14) -> 24.70191272 | AF13: =AVERAGE(AG12:AG14,AF12,AF14,AE12:AE14) -> 23.54342132 | AG13: =AVERAGE(AH12:AH14,AG12,AG14,AF12:AF14) -> 22.4826004 | AH13: =AVERAGE(AI12:AI14,AH12,AH14,AG12:AG14) -> 21.60935322 | AI13: =AVERAGE(AJ12:AJ14,AI12,AI14,AH12:AH14) -> 20.97554719 | AJ13: =AVERAGE(AK12:AK14,AJ12,AJ14,AI12:AI14) -> 20.59157843 | AK13: 20.44286114
C14: 76.3390605 | D14: 76.37484634 | E14: 76.48091332 | F14: 76.70384393 | G14: 77.13729813 | H14: 77.96207847 | I14: 79.62157716 | J14: 82.80158711 | K14: 100 | L14: =AVERAGE(M13:M15,L13,L15,K13:K15) -> 78.83339985 | M14: =AVERAGE(N13:N15,M13,M15,L13:L15) -> 71.7013523 | N14: 66.11898991 | O14: 61.40710282 | P14: 57.11860805 | Q14: 53.05368012 | R14: 49.07646428 | S14: 45.06139405 | T14: 40.84504242 | U14: 36.19568182 | V14: 30.25010586 | W14: 27.25737854 | X14: 26.50399759 | Y14: 28.60188227 | Z14: 29.20793113 | AA14: 29.10732625 | AB14: 28.47671316 | AC14: 27.44829606 | AD14: 26.13227584 | AE14: 24.64958983 | AF14: 23.14459031 | AG14: 21.7810801 | AH14: 20.69939435 | AI14: 19.96993994 | AJ14: 19.56956985 | AK14: 19.42839069
C15: 76.2894847 | D15: =AVERAGE(E14:E16,D14,D16,C14:C16) -> 76.30918613 | E15: =AVERAGE(F14:F16,E14,E16,D14:D16) -> 76.37373575 | F15: =AVERAGE(G14:G16,F14,F16,E14:E16) -> 76.52507973 | G15: =AVERAGE(H14:H16,G14,G16,F14:F16) -> 76.84292417 | H15: =AVERAGE(I14:I16,H14,H16,G14:G16) -> 77.47527623 | I15: =AVERAGE(J14:J16,I14,I16,H14:H16) -> 78.66020544 | J15: =AVERAGE(K14:K16,J14,J16,I14:I16) -> 81.36467525 | K15: =AVERAGE(L14:L16,K14,K16,J14:J16) -> 80.66985084 | L15: =AVERAGE(M14:M16,L14,L16,K14:K16) -> 77.35626787 | M15: =AVERAGE(N14:N16,M14,M16,L14:L16) -> 70.66967472 | N15: =AVERAGE(O14:O16,N14,N16,M14:M16) -> 65.55186109 | O15: =AVERAGE(P14:P16,O14,O16,N14:N16) -> 61.05219509 | P15: =AVERAGE(Q14:Q16,P14,P16,O14:O16) -> 56.93905956 | Q15: =AVERAGE(R14:R16,Q14,Q16,P14:P16) -> 53.05771877 | R15: =AVERAGE(S14:S16,R14,R16,Q14:Q16) -> 49.30510292 | S15: =AVERAGE(T14:T16,S14,S16,R14:R16) -> 45.59577908 | T15: =AVERAGE(U14:U16,T14,T16,S14:S16) -> 41.85501965 | U15: =AVERAGE(V14:V16,U14,U16,T14:T16) -> 38.02072883 | V15: =AVERAGE(W14:W16,V14,V16,U14:U16) -> 34.61715062 | W15: =AVERAGE(X14:X16,W14,W16,V14:V16) -> 32.17245587 | X15: 31.20088291 | Y15: 31.05225718 | Z15: 31.06857431 | AA15: 30.61561642 | AB15: 29.68275447 | AC15: 28.31412706 | AD15: 26.59369644 | AE15: 24.62916254 | AF15: 22.60314206 | AG15: 20.76619555 | AH15: 19.40032105 | AI15: 18.61049097 | AJ15: 18.30363597 | AK15: 18.23448509
C16: 76.21740486 | D16: 76.2067766 | E16: 76.1910757 | F16: 76.19798514 | G16: 76.27269999 | H16: 76.46899239 | I16: 76.83632163 | J16: 76.75105351 | K16: 75.57675736 | L16: 72.67505087 | M16: 68.72407616 | N16: 64.39645301 | O16: 60.3451312 | P16: 56.54047306 | Q16: 52.93771396 | R16: 49.49081933 | S16: 46.16744438 | T16: 42.96514983 | U16: 39.98914867 | V16: =AVERAGE(W15:W17,V15,V17,U15:U17) -> 37.44874865 | W16: =AVERAGE(X15:X17,W15,W17,V15:V17) -> 35.60318028 | X16: =AVERAGE(Y15:Y17,X15,X17,W15:W17) -> 34.49843881 | Y16: =AVERAGE(Z15:Z17,Y15,Y17,X15:X17) -> 33.91772698 | Z16: 33.41889812 | AA16: 32.62724974 | AB16: 31.33579356 | AC16: 29.53723415 | AD16: 27.30657965 | AE16: 24.73263398 | AF16: 21.87111516 | AG16: 19.25108341 | AH16: 17.3791432 | AI16: 16.74554038 | AJ16: 16.81668121 | AK16: 17.05428943
C17: 76.16651437 | D17: 76.11493283 | E17: 75.99171311 | F17: 75.80904122 | G17: 75.57747091 | H17: 75.28470827 | I17: 74.80223302 | J17: 73.88335485 | K17: 72.21498328 | L17: 69.69880523 | M17: 66.49000428 | N17: 62.95453513 | O17: 59.38421902 | P17: 55.94235468 | Q17: 52.66551939 | R17: 49.56081421 | S17: 46.63663123 | T17: 43.93042289 | U17: 41.52621888 | V17: 39.54995348 | W17: 38.1113641 | X17: 37.22666838 | Y17: 36.70320569 | Z17: 36.1731321 | AA17: 35.19367441 | AB17: 33.52981521 | AC17: 31.18614422 | AD17: 28.34923275 | AE17: 25.11067399 | AF17: 21.39772806 | AG17: 16.47854326 | AH17: 14.11270307 | AI17: 13.66848149 | AJ17: 15.67308344 | AK17: 16.2436685
C18: 76.19607642 | D18: 76.09727864 | E18: 75.85249362 | F18: 75.4639999 | G18: 74.92478156 | H18: 74.19746349 | I18: 73.19762524 | J18: 71.79828661 | K18: 69.88954183 | L18: 67.44700313 | M18: 64.57303654 | N18: 61.45111091 | O18: 58.27231175 | P18: 55.1714687 | Q18: 52.22210967 | R18: 49.45853158 | S18: 46.90789205 | T18: 44.61213821 | U18: 42.63893401 | V18: 41.07543834 | W18: 40.006785 | X18: =AVERAGE(Y17:Y19,X17,X19,W17:W19) -> 39.48189548 | Y18: =AVERAGE(Z17:Z19,Y17,Y19,X17:X19) -> 39.49095018 | Z18: =AVERAGE(AA17:AA19,Z17,Z19,Y17:Y19) -> 39.41813748 | AA18: =AVERAGE(AB17:AB19,AA17,AA19,Z17:Z19) -> 38.6154183 | AB18: =AVERAGE(AC17:AC19,AB17,AB19,AA17:AA19) -> 36.43115779 | AC18: =AVERAGE(AD17:AD19,AC17,AC19,AB17:AB19) -> 33.31206002 | AD18: =AVERAGE(AE17:AE19,AD17,AD19,AC17:AC19) -> 29.68749309 | AE18: =AVERAGE(AF17:AF19,AE17,AE19,AD17:AD19) -> 25.92125215 | AF18: =AVERAGE(AG17:AG19,AF17,AF19,AE17:AE19) -> 21.61955481 | AG18: =AVERAGE(AH17:AH19,AG17,AG19,AF17:AF19) -> 16.19714142 | AH18: 0 | AI18: =AVERAGE(AJ17:AJ19,AI17,AI19,AH17:AH19) -> 13.18180338 | AJ18: =AVERAGE(AK17:AK19,AJ17,AJ19,AI17:AI19) -> 15.43901794 | AK18: 16.23534644
C19: 76.37536756 | D19: =AVERAGE(E18:E20,D18,D20,C18:C20) -> 76.22622026 | E19: 75.85482667 | F19: =AVERAGE(G18:G20,F18,F20,E18:E20) -> 75.26185777 | G19: =AVERAGE(H18:H20,G18,G20,F18:F20) -> 74.43974371 | H19: =AVERAGE(I18:I20,H18,H20,G18:G20) -> 73.36390663 | I19: =AVERAGE(J18:J20,I18,I20,H18:H20) -> 71.98919002 | J19: =AVERAGE(K18:K20,J18,J20,I18:I20) -> 70.26182436 | K19: =AVERAGE(L18:L20,K18,K20,J18:J20) -> 68.14752106 | L19: 65.6645538 | M19: 62.89759471 | N19: 59.98071988 | O19: 57.05652031 | P19: 54.23763923 | Q19: 51.59116839 | R19: 49.14949169 | S19: 46.93475226 | T19: 44.98049392 | U19: 43.34191073 | V19: 42.09505381 | W19: 41.33345007 | X19: 41.18062165 | Y19: 41.80228231 | Z19: 43.94181508 | AA19: 43.42477137 | AB19: 40.81098903 | AC19: 35.37654012 | AD19: 31.12526308 | AE19: 27.11893328 | AF19: 22.96128204 | AG19: 17.77100483 | AH19: =AVERAGE(AI18:AI20,AH18,AH20,AG18:AG20) -> 15.23638648 | AI19: =AVERAGE(AJ18:AJ20,AI18,AI20,AH18:AH20) -> 14.68885623 | AJ19: =AVERAGE(AK18:AK20,AJ18,AJ20,AI18:AI20) -> 16.63599789 | AK19: 17.18501499
C20: 76.77960288 | D20: 76.57763018 | E20: 76.07645312 | F20: 75.2826503 | G20: 74.19988828 | H20: 72.82338242 | I20: 71.1391656 | J20: 69.13186078 | K20: 66.80140729 | L20: 64.18570401 | M20: 61.37464608 | N20: 58.50401971 | O20: 55.7165686 | P20: 53.11838719 | Q20: 50.75265685 | R20: 48.61915373 | S20: 46.70977339 | T20: 45.04065908 | U20: 43.65801612 | V20: 42.63468313 | W20: 42.07134699 | X20: 42.12190928 | Y20: 43.13648093 | Z20: 45.64656145 | AA20: 60 | AB20: =AVERAGE(AC19:AC21,AB19,AB21,AA19:AA21) -> 42.53416693 | AC20: =AVERAGE(AD19:AD21,AC19,AC21,AB19:AB21) -> 36.79387847 | AD20: =AVERAGE(AE19:AE21,AD19,AD21,AC19:AC21) -> 32.31741846 | AE20: =AVERAGE(AF19:AF21,AE19,AE21,AD19:AD21) -> 28.47463582 | AF20: =AVERAGE(AG19:AG21,AF19,AF21,AE19:AE21) -> 24.84466514 | AG20: =AVERAGE(AH19:AH21,AG19,AG21,AF19:AF21) -> 21.74315076 | AH20: 19.56592732 | AI20: 18.74327118 | AJ20: 18.70851206 | AK20: 18.90623017
C21: 77.48920586 | D21: 77.22960237 | E21: 76.5897839 | F21: 75.58907606 | G21: 74.24959696 | H21: 72.58891807 | I21: 70.61667722 | J21: 68.33759392 | K21: 65.76153712 | L21: 62.92069601 | M21: 59.917712 | N21: 56.92620908 | O21: 54.16223362 | P21: 51.74687407 | Q21: 49.68349969 | R21: 47.87511374 | S21: 46.25685627 | T21: 44.82175748 | U21: 43.6218104 | V21: 42.72786279 | W21: 42.2281179 | X21: 42.24917854 | Y21: 42.97388926 | Z21: 45.17566798 | AA21: =AVERAGE(AB20:AB22,AA20,AA22,Z20:Z22) -> 44.71763001 | AB21: =AVERAGE(AC20:AC22,AB20,AB22,AA20:AA22) -> 42.20069145 | AC21: =AVERAGE(AD20:AD22,AC20,AC22,AB20:AB22) -> 36.94889681 | AD21: =AVERAGE(AE20:AE22,AD20,AD22,AC20:AC22) -> 33.03712713 | AE21: =AVERAGE(AF20:AF22,AE20,AE22,AD20:AD22) -> 29.66413842 | AF21: =AVERAGE(AG20:AG22,AF20,AF22,AE20:AE22) -> 26.72831779 | AG21: =AVERAGE(AH20:AH22,AG20,AG22,AF20:AF22) -> 24.29590744 | AH21: =AVERAGE(AI20:AI22,AH20,AH22,AG20:AG22) -> 22.5417552 | AI21: =AVERAGE(AJ20:AJ22,AI20,AI22,AH20:AH22) -> 21.50712101 | AJ21: =AVERAGE(AK20:AK22,AJ20,AJ22,AI20:AI22) -> 21.06164548 | AK21: 20.93999139
C22: 78.59355914 | D22: 78.26568679 | E22: 77.46497099 | F22: 76.23227507 | G22: 74.6170628 | H22: 72.66359381 | I22: 70.40204556 | J22: 67.8469215 | K22: 65.00119528 | L22: 61.86697198 | M22: 58.45644346 | N22: 55.10705138 | O22: 52.17104199 | P22: 50.00776224 | Q22: 48.36289129 | R22: 46.98521288 | S22: 45.63092657 | T22: 44.37231994 | U22: 43.28376943 | V22: 42.43548933 | W22: 41.88974318 | X22: 41.69480085 | Y22: 41.87720346 | Z22: 41.8893631 | AA22: 41.16425747 | AB22: 39.13036755 | AC22: 36.31636933 | AD22: 33.26118818 | AE22: 30.52052065 | AF22: 28.12925686 | AG22: 26.15428199 | AH22: 24.65991165 | AI22: 23.6644715 | AJ22: 23.11147125 | AK22: 22.91209092
C23: 80.20057865 | D23: 79.78280972 | E23: 78.77510416 | F23: 77.25554967 | G23: 75.3171739 | H23: 73.04043274 | I23: 70.47695059 | J23: 67.64537474 | K23: 64.53408456 | L23: 61.09645721 | M23: 57.24771256 | N23: 52.56878775 | O23: 49.40631106 | P23: 47.44314124 | Q23: 47.08613854 | R23: 46.07542373 | S23: 44.91089269 | T23: 43.7498787 | U23: 42.70271339 | V23: 41.83837007 | W23: 41.19157319 | X23: 40.75259504 | Y23: 40.39614232 | Z23: 39.88601869 | AA23: 38.92411557 | AB23: 37.39021865 | AC23: 35.38076873 | AD23: 33.18169833 | AE23: 31.03998177 | AF23: 29.12244511 | AG23: 27.50844221 | AH23: 26.24819265 | AI23: 25.35908806 | AJ23: 24.82654913 | AK23: 24.62077253
C24: 82.45522031 | D24: 81.90573246 | E24: 80.60178188 | F24: 78.69218363 | G24: 76.34400054 | H24: 73.69244393 | I24: 70.81033295 | J24: 67.71458853 | K24: 64.37699145 | L24: =AVERAGE(M23:M25,L23,L25,K23:K25) -> 60.72426963 | M24: =AVERAGE(N23:N25,M23,M25,L23:L25) -> 56.56406289 | N24: =AVERAGE(O23:O25,N23,N25,M23:M25) -> 51.59771033 | O24: 40 | P24: =AVERAGE(Q23:Q25,P23,P25,O23:O25) -> 46.3550133 | Q24: =AVERAGE(R23:R25,Q23,Q25,P23:P25) -> 46.15598608 | R24: =AVERAGE(S23:S25,R23,R25,Q23:Q25) -> 45.3036963 | S24: 44.16766484 | T24: 43.00203871 | U24: 41.92872483 | V24: 41.01113673 | W24: 40.26382938 | X24: 39.64663634 | Y24: =AVERAGE(Z23:Z25,Y23,Y25,X23:X25) -> 39.06084151 | Z24: =AVERAGE(AA23:AA25,Z23,Z25,Y23:Y25) -> 38.36168263 | AA24: =AVERAGE(AB23:AB25,AA23,AA25,Z23:Z25) -> 37.41453896 | AB24: =AVERAGE(AC23:AC25,AB23,AB25,AA23:AA25) -> 36.15646535 | AC24: 34.63484647 | AD24: 32.97496844 | AE24: 31.32490732 | AF24: 29.80482498 | AG24: 28.49729219 | AH24: 27.45127146 | AI24: 26.69071475 | AJ24: 26.22004989 | AK24: 26.03365921
C25: 85.57665382 | D25: 84.81045808 | E25: 83.04343144 | F25: 80.54916778 | G25: 77.65144327 | H25: 74.55379 | I25: 71.34559837 | J25: 68.01363951 | K25: 64.5138697 | L25: 60.77375716 | M25: 56.68730527 | N25: 51.81656087 | O25: 48.49097193 | P25: 46.37908159 | Q25: 45.87848462 | R25: 44.72691253 | S25: =AVERAGE(T24:T26,S24,S26,R24:R26) -> 43.42806798 | T25: =AVERAGE(U24:U26,T24,T26,S24:S26) -> 42.14440702 | U25: =AVERAGE(V24:V26,U24,U26,T24:T26) -> 40.98395806 | V25: =AVERAGE(W24:W26,V24,V26,U24:U26) -> 39.9972924 | W25: =AVERAGE(X24:X26,W24,W26,V24:V26) -> 39.18262654 | X25: =AVERAGE(Y24:Y26,X24,X26,W24:W26) -> 38.49039495 | Y25: 37.8350727 | Z25: 37.11816763 | AA25: 36.2585343 | AB25: 35.22107122 | AC25: 34.0275825 | AD25: 32.74594288 | AE25: 31.46395424 | AF25: 30.26536771 | AG25: 29.21612472 | AH25: 28.36157547 | AI25: 27.72864126 | AJ25: 27.33024447 | AK25: 27.17062112
C26: 89.90355914 | D26: 88.80843184 | E26: 86.1890363 | F26: 82.79085221 | G26: 79.08081427 | H26: 75.50849602 | I26: 71.99738369 | J26: 68.47428689 | K26: 64.87621388 | L26: 61.15733091 | M26: 57.29010344 | N26: 53.57470683 | O26: 50.32766022 | P26: 47.87705561 | Q26: 45.94747998 | R26: 44.28264083 | S26: 42.65126286 | T26: 41.14590034 | U26: 39.84761565 | V26: 38.79452346 | W26: 37.96589612 | X26: 37.2912702 | Y26: 36.67694852 | Z26: 36.03459465 | AA26: 35.30307476 | AB26: 34.45861739 | AC26: 33.51483865 | AD26: 32.51382788 | AE26: 31.51252503 | AF26: 30.56916618 | AG26: 29.73403301 | AH26: 29.04534314 | AI26: 28.52905173 | AJ26: 28.20074185 | AK26: 28.06833544
C27: 96.2553582 | D27: 94.06701045 | E27: 90.6221124 | F27: 84.82101584 | G27: 80.37000622 | H27: 76.40196132 | I27: 72.6671801 | J27: 69.01430512 | K27: 65.36626361 | L27: 61.69638405 | M27: 58.05484182 | N27: 54.55999948 | O27: 51.37024129 | P27: 48.55266995 | Q27: 46.06984302 | R27: 43.81312683 | S27: 41.74591589 | T27: 39.92309365 | U27: 38.4428406 | V27: 37.34886563 | W27: 36.5870448 | X27: 36.03509804 | Y27: 35.55702081 | Z27: 35.05390277 | AA27: 34.47396116 | AB27: 33.80566526 | AC27: 33.06411756 | AD27: 32.28177965 | AE27: 31.49976593 | AF27: 30.760267 | AG27: 30.10115118 | AH27: 29.5531174 | AI27: 29.13889014 | AJ27: 28.87369348 | AK27: 28.76628695
C28: 98.49786545 | D28: 110 | E28: 92.25985098 | F28: 86.04086399 | G28: 81.21481604 | H28: 77.10146248 | I28: 73.27575146 | J28: 69.56398829 | K28: 65.89353483 | L28: 62.25419036 | M28: 58.67868188 | N28: 55.22739058 | O28: 51.95639115 | P28: 48.88605151 | Q28: 45.98661171 | R28: 43.21306852 | S28: 40.60814397 | T28: 38.33003746 | U28: 36.61297673 | V28: 35.53965287 | W28: 35.00031117 | X28: 34.72067113 | Y28: =AVERAGE(Z27:Z29,Y27,Y29,X27:X29) -> 34.48154445 | Z28: =AVERAGE(AA27:AA29,Z27,Z29,Y27:Y29) -> 34.1620518 | AA28: =AVERAGE(AB27:AB29,AA27,AA29,Z27:Z29) -> 33.74193283 | AB28: 33.23174751 | AC28: 32.65691974 | AD28: 32.04942028 | AE28: 31.44268517 | AF28: 30.86830576 | AG28: 30.35434003 | AH28: 29.924461 | AI28: 29.59748303 | AJ28: 29.38703628 | AK28: 29.30152512
C29: 97.16345354 | D29: =AVERAGE(E28:E30,D28,D30,C28:C30) -> 95.00361227 | E29: =AVERAGE(F28:F30,E28,E30,D28:D30) -> 91.62276126 | F29: 85.90166939 | G29: =AVERAGE(H28:H30,G28,G30,F28:F30) -> 81.51492817 | H29: 77.56686614 | I29: =AVERAGE(J28:J30,I28,I30,H28:H30) -> 73.80041509 | J29: =AVERAGE(K28:K30,J28,J30,I28:I30) -> 70.09002729 | K29: =AVERAGE(L28:L30,K28,K30,J28:J30) -> 66.40458677 | L29: 62.75865225 | M29: 59.1806578 | N29: 55.69738171 | O29: 52.32093927 | P29: 49.03643731 | Q29: 45.79523901 | R29: 42.52640372 | S29: =AVERAGE(T28:T30,S28,S30,R28:R30) -> 39.15920224 | T29: =AVERAGE(U28:U30,T28,T30,S28:S30) -> 36.15423864 | U29: =AVERAGE(V28:V30,U28,U30,T28:T30) -> 33.993822 | V29: =AVERAGE(W28:W30,V28,V30,U28:U30) -> 33.17119425 | W29: =AVERAGE(X28:X30,W28,W30,V28:V30) -> 33.16009314 | X29: =AVERAGE(Y28:Y30,X28,X30,W28:W30) -> 33.43978626 | Y29: 33.50437809 | Z29: 33.37934592 | AA29: 33.10421969 | AB29: 32.72445158 | AC29: 32.28258557 | AD29: 31.81545202 | AE29: 31.35190421 | AF29: 30.91441885 | AG29: 30.52173071 | AH29: 30.19107132 | AI29: 29.93769564 | AJ29: 29.77368212 | AK29: 29.70681235
C30: 91.67497443 | D30: 90.64102416 | E30: 88.16925519 | F30: 84.96610202 | G30: 81.42505371 | H30: 77.90284501 | I30: 74.29987939 | J30: 70.60268667 | K30: 66.87952322 | L30: 63.19419893 | M30: 59.5839123 | N30: 56.05088453 | O30: 52.58019212 | P30: 49.13275245 | Q30: 45.63326652 | R30: 41.94725126 | S30: 37.86837117 | T30: 32.62602943 | U30: 30.03525591 | V30: 29.48112028 | W30: 31.54624184 | X30: 32.38167409 | Y30: =AVERAGE(Z29:Z31,Y29,Y31,X29:X31) -> 32.7232702 | Z30: =AVERAGE(AA29:AA31,Z29,Z31,Y29:Y31) -> 32.74656659 | AA30: 32.57068305 | AB30: 32.27685129 | AC30: 31.9305378 | AD30: 31.57515763 | AE30: 31.2342437 | AF30: 30.91537033 | AG30: 30.62657275 | AH30: 30.37909098 | AI30: 30.1869684 | AJ30: 30.06153457 | AK30: 30.01015897
C31: 88.11874526 | D31: 87.44829853 | E31: 85.92743887 | F31: =AVERAGE(G30:G32,F30,F32,E30:E32) -> 83.84346006 | G31: 81.32454211 | H31: 78.38026839 | I31: 74.91101604 | J31: 71.14507897 | K31: 67.29109709 | L31: =AVERAGE(M30:M32,L30,L32,K30:K32) -> 63.54995031 | M31: =AVERAGE(N30:N32,M30,M32,L30:L32) -> 59.90526566 | N31: =AVERAGE(O30:O32,N30,N32,M30:M32) -> 56.33432316 | O31: =AVERAGE(P30:P32,O30,O32,N30:N32) -> 52.80438538 | P31: =AVERAGE(Q30:Q32,P30,P32,O30:O32) -> 49.26438492 | Q31: =AVERAGE(R30:R32,Q30,Q32,P30:P32) -> 45.6271044 | R31: =AVERAGE(S30:S32,R30,R32,Q30:Q32) -> 41.73647404 | S31: =AVERAGE(T30:T32,S30,S32,R30:R32) -> 37.23185856 | T31: =AVERAGE(U30:U32,T30,T32,S30:S32) -> 31.56542654 | U31: 15 | V31: =AVERAGE(W30:W32,V30,V32,U30:U32) -> 28.29015562 | W31: =AVERAGE(X30:X32,W30,W32,V30:V32) -> 30.65212614 | X31: =AVERAGE(Y30:Y32,X30,X32,W30:W32) -> 31.79367776 | Y31: =AVERAGE(Z30:Z32,Y30,Y32,X30:X32) -> 32.23369956 | Z31: =AVERAGE(AA30:AA32,Z30,Z32,Y30:Y32) -> 32.30690674 | AA31: =AVERAGE(AB30:AB32,AA30,AA32,Z30:Z32) -> 32.14989979 | AB31: =AVERAGE(AC30:AC32,AB30,AB32,AA30:AA32) -> 31.87709113 | AC31: 31.57520568 | AD31: =AVERAGE(AE30:AE32,AD30,AD32,AC30:AC32) -> 31.31736083 | AE31: =AVERAGE(AF30:AF32,AE30,AE32,AD30:AD32) -> 31.09380699 | AF31: =AVERAGE(AG30:AG32,AF30,AF32,AE30:AE32) -> 30.89029205 | AG31: =AVERAGE(AH30:AH32,AG30,AG32,AF30:AF32) -> 30.68978407 | AH31: =AVERAGE(AI30:AI32,AH30,AH32,AG30:AG32) -> 30.51059459 | AI31: =AVERAGE(AJ30:AJ32,AI30,AI32,AH30:AH32) -> 30.36806596 | AJ31: =AVERAGE(AK30:AK32,AJ30,AJ32,AI30:AI32) -> 30.27375701 | AK31: 30.23487534
C32: 85.62949231 | D32: 85.20023576 | E32: 84.22560868 | F32: 82.92587737 | G32: 81.78409851 | H32: 79.36886607 | I32: 76.02602418 | J32: 71.5626194 | K32: 67.58789452 | L32: 63.80690255 | M32: 60.15084854 | N32: 56.57110714 | O32: 53.02795644 | P32: 49.47341906 | Q32: 45.83591648 | R32: 41.99326882 | S32: 37.75464718 | T32: 32.36329646 | U32: 29.64387334 | V32: 28.9866374 | W32: 30.97587739 | X32: 31.76149979 | Y32: 32.07489818 | Z32: 32.08096465 | AA32: 31.87513478 | AB32: 31.46486967 | AC32: 31.17342011 | AD32: 30.98622359 | AE32: 30.97013393 | AF32: 30.86148578 | AG32: 30.73072039 | AH32: 30.60390444 | AI32: 30.49939145 | AJ32: 30.42901651 | AK32: 30.39976895
C33: 83.83879706 | D33: 83.54170956 | E33: 82.87221068 | F33: 82.04600854 | G33: 81.38395028 | H33: 85 | I33: 76.14115157 | J33: 71.69928016 | K33: 67.69951095 | L33: 63.94878402 | M33: 60.32189871 | N33: 56.76854729 | O33: 53.25558613 | P33: 49.75182163 | Q33: 46.22009598 | R33: 42.6206452 | S33: 38.91928212 | T33: 35.606798 | U33: 33.18435715 | V33: 32.15418344 | W33: 31.99238611 | X33: 32.17620642 | Y33: 32.1929761 | Z33: 32.05310348 | AA33: 31.7609529 | AB33: 31.30715826 | AC33: 30 | AD33: 30.85935069 | AE33: 30.90038022 | AF33: 30.85197671 | AG33: 30.7645644 | AH33: 30.67290915 | AI33: 30.5949358 | AJ33: 30.54166645 | AK33: 30.51938298
C34: 82.53051835 | D34: =AVERAGE(E33:E35,D33,D35,C33:C35) -> 82.29237145 | E34: =AVERAGE(F33:F35,E33,E35,D33:D35) -> 81.74487764 | F34: =AVERAGE(G33:G35,F33,F35,E33:E35) -> 81.00138385 | G34: =AVERAGE(H33:H35,G33,G35,F33:F35) -> 80.43037491 | H34: =AVERAGE(I33:I35,H33,H35,G33:G35) -> 78.51519051 | I34: =AVERAGE(J33:J35,I33,I35,H33:H35) -> 75.56610138 | J34: =AVERAGE(K33:K35,J33,J35,I33:I35) -> 71.39126575 | K34: =AVERAGE(L33:L35,K33,K35,J33:J35) -> 67.61977271 | L34: =AVERAGE(M33:M35,L33,L35,K33:K35) -> 63.97963214 | M34: =AVERAGE(N33:N35,M33,M35,L33:L35) -> 60.42383465 | N34: =AVERAGE(O33:O35,N33,N35,M33:M35) -> 56.92551521 | O34: =AVERAGE(P33:P35,O33,O35,N33:N35) -> 53.47157588 | P34: =AVERAGE(Q33:Q35,P33,P35,O33:O35) -> 50.05465858 | Q34: =AVERAGE(R33:R35,Q33,Q35,P33:P35) -> 46.67525108 | R34: =AVERAGE(S33:S35,R33,R35,Q33:Q35) -> 43.35565505 | S34: =AVERAGE(T33:T35,S33,S35,R33:R35) -> 40.21090132 | T34: =AVERAGE(U33:U35,T33,T35,S33:S35) -> 37.44889476 | U34: =AVERAGE(V33:V35,U33,U35,T33:T35) -> 35.32897755 | V34: =AVERAGE(W33:W35,V33,V35,U33:U35) -> 33.94203855 | W34: =AVERAGE(X33:X35,W33,W35,V33:V35) -> 33.1791587 | X34: =AVERAGE(Y33:Y35,X33,X35,W33:W35) -> 32.76332285 | Y34: =AVERAGE(Z33:Z35,Y33,Y35,X33:X35) -> 32.46936681 | Z34: =AVERAGE(AA33:AA35,Z33,Z35,Y33:Y35) -> 32.16428303 | AA34: =AVERAGE(AB33:AB35,AA33,AA35,Z33:Z35) -> 31.8060942 | AB34: =AVERAGE(AC33:AC35,AB33,AB35,AA33:AA35) -> 31.33587183 | AC34: =AVERAGE(AD33:AD35,AC33,AC35,AB33:AB35) -> 31.0408153 | AD34: 30.88453559 | AE34: 30.91912319 | AF34: 30.87000592 | AG34: 30.79916201 | AH34: 30.72608938 | AI34: 30.66422632 | AJ34: 30.62199179 | AK34: 30.6043205
C35: 81.60242883 | D35: 81.37763796 | E35: 80.831241 | F35: 79.99686149 | G35: 78.70588385 | H35: 76.79399127 | I35: 74.10027972 | J35: 70.88781128 | K35: 67.4163294 | L35: 63.93563275 | M35: 60.47131364 | N35: 57.0393301 | O35: 53.65197314 | P35: 50.32507959 | Q35: 47.08576306 | R35: 43.98814734 | S35: 41.12499809 | T35: 38.62262487 | U35: 36.59304823 | V35: 35.07970111 | W35: 34.02431947 | X35: 33.30093389 | Y35: 32.77105793 | Z35: 32.33287571 | AA35: 31.92766681 | AB35: 31.56667868 | AC35: 31.27744485 | AD35: 31.09530796 | AE35: 30.98366478 | AF35: 30.90754066 | AG35: 30.83338774 | AH35: 30.76655306 | AI35: 30.71269086 | AJ35: 30.67667688 | AK35: 30.66173112
C36: 81.0215882 | D36: 80.79038587 | E36: 80.20814833 | F36: 79.23867494 | G36: 77.81466474 | H36: 75.85622369 | I36: 73.36344394 | J36: 70.42838389 | K36: 67.21703271 | L36: 63.87117155 | M36: 60.48599434 | N36: 57.10937296 | O36: 53.77499581 | P36: 50.51515785 | Q36: 47.37113465 | R36: 44.4008725 | S36: 41.68043996 | T36: 39.29227569 | U36: 37.30128359 | V36: 35.72840621 | W36: 34.54019113 | X36: 33.66061745 | Y36: 32.9992517 | Z36: 32.47762865 | AA36: 32.04747545 | AB36: 31.69024631 | AC36: 31.40763005 | AD36: 31.19827738 | AE36: 31.05075975 | AF36: 30.94353424 | AG36: 30.86043296 | AH36: 30.79350989 | AI36: 30.74263599 | AJ36: 30.70954325 | AK36: =AVERAGE(AJ35:AK35,AJ36,AJ37:AK37) -> 30.69596894
C37: =AVERAGE(C36:D36,D37) -> 80.78742535 | D37: =AVERAGE(C36:C37,D36,E36:E37) -> 80.55041851 | E37: =AVERAGE(D36:D37,E36,F36:F37) -> 79.94465225 | F37: 78.93572823 | G37: 77.47258053 | H37: 75.51767486 | I37: 73.08150974 | J37: 70.24185609 | K37: 67.11893039 | L37: 63.83621531 | M37: 60.48794362 | N37: 57.13694968 | O37: 53.82641852 | P37: 50.59558577 | Q37: 47.49018572 | R37: 44.56813726 | S37: 41.89800999 | T37: 39.54827912 | U37: 37.56933989 | V37: 35.97640776 | W37: 34.74277076 | X37: 33.80818417 | Y37: 33.09804298 | Z37: 32.54448637 | AA37: 32.09998634 | AB37: 31.74004725 | AC37: 31.45484816 | AD37: 31.23798634 | AE37: 31.07835835 | AF37: 30.96117103 | AG37: 30.87270208 | AH37: 30.80479046 | AI37: 30.75459662 | AJ37: 30.72242696 | AK37: =AVERAGE(AJ36:AK36,AJ37) -> 30.70931305

Sheet PAHy
B2: middle date | C2: fluorene | D2: phenantrene | E2: fluoranthene | F2: pyrene
B3: 2003-10-15 | C3: 434.4 | D3: 1091.8 | E3: 297.4 | F3: 156.2
B4: 2003-11-12 | C4: 479 | D4: 1425.8 | E4: 327.2 | F4: 158.2
B5: 2003-12-10 | C5: 705.8 | D5: 2222.2 | E5: 635.6 | F5: 335.4
B6: 2004-01-07 | C6: 1069.4 | D6: 3792.4 | E6: 1030.4 | F6: 483.6
B7: 2004-02-04 | C7: 630.8 | D7: 2142 | E7: 674.2 | F7: 266
B8: 2004-03-03 | C8: 745 | D8: 2181.8 | E8: 639.2 | F8: 243.2
B9: 2004-03-31 | C9: 246.8 | D9: 786 | E9: 266 | F9: 126.4
B10: 2004-04-28 | C10: 126.8 | D10: 464.4 | E10: 142.4 | F10: 72
B11: 2004-05-26 | C11: 89.6 | D11: 269.4 | E11: 68 | F11: 36
B12: 2004-06-26 | C12: 55.85714 | D12: 163.2 | E12: 44.92857 | F12: 21.85714
B13: 2004-07-27 | C13: 5.6 | D13: 55.8 | E13: 27.2 | F13: 13
B14: 2004-08-24 | C14: 37.4 | D14: 108.8 | E14: 32.6 | F14: 15.8
B15: 2004-09-21 | C15: 143.4464 | D15: 408.5893 | E15: 130.5 | F15: 73.43214
B16: 2004-10-20 | C16: 442.7679 | D16: 1328.614 | E16: 405.4821 | F16: 205.9
B17: 2004-12-01 | C17: 1853.5 | D17: 5524.357 | E17: 1273.643 | F17: 691.4286
B18: 2005-01-12 | C18: 898.2 | D18: 2967 | E18: 823.2 | F18: 501.8
B19: 2005-02-09 | C19: 688 | D19: 1893.1 | E19: 460.8 | F19: 241.2
B20: 2005-03-09 | C20: 569.8 | D20: 1817.6 | E20: 494.6 | F20: 204.4
B21: 2005-04-06 | C21: 216.6 | D21: 700.4 | E21: 306.6 | F21: 348.6
B22: 2005-05-04 | C22: 64.7 | D22: 193.8 | E22: 84.8 | F22: 106.4
B23: 2005-06-01 | C23: 140 | D23: 363.6 | E23: 103.4 | F23: 42.6
B24: 2005-06-29 | C24: 138.2 | D24: 296 | E24: 60 | F24: 23.2
B25: 2005-07-27 | C25: 94.4 | D25: 293.2 | E25: 82.4 | F25: 52.6
B26: 2005-08-24 | C26: 97.4 | D26: 272.6 | E26: 111.6 | F26: 193.2
B27: 2005-09-21 | C27: 58 | D27: 137.8 | E27: 61 | F27: 38
B28: 2005-10-19 | C28: 417.6 | D28: 1066.8 | E28: 414.65 | F28: 275.75
B29: 2005-11-16 | C29: 1354.44 | D29: 3156.52 | E29: 741.52 | F29: 506.96
B30: 2005-12-14 | C30: 1261.38 | D30: 3246.14 | E30: 1107.68 | F30: 541.28
B31: 2006-01-11 | C31: 1003.46 | D31: 2293.98 | E31: 418.36 | F31: 181.86
B32: 2006-02-08 | C32: 1392.1 | D32: 3389.92 | E32: 614.42 | F32: 241.46
B33: 2006-03-08 | C33: 612.78 | D33: 2507.74 | E33: 499.36 | F33: 148.04
B34: 2006-04-05 | C34: 387.66 | D34: 1367.14 | E34: 296.56 | F34: 125.48
B35: 2006-05-03 | C35: 125.82 | D35: 445.32 | E35: 113.7 | F35: 50.56
B36: 2006-05-31 | C36: 99.02 | D36: 299.24 | E36: 77.92 | F36: 32.96
B37: 2006-06-28 | C37: 82.24 | D37: 221.26 | E37: 58.48 | F37: 24.84
B38: 2006-07-26 | C38: 84.34 | D38: 214.3 | E38: 86.8 | F38: 138.36
B39: 2006-08-23 | C39: 53.8 | D39: 148.12 | E39: 43.16 | F39: 23.18
B40: 2006-09-20 | C40: 75.02 | D40: 171.46 | E40: 56.1 | F40: 29.92
B41: 2006-10-18 | C41: 210.02 | D41: 571.12 | E41: 164.94 | F41: 93.08
B42: 2006-11-15 | C42: 390.46 | D42: 1202.36 | E42: 335.4 | F42: 179.3
B43: 2006-12-13 | C43: 663.28 | D43: 1860.88 | E43: 471.92 | F43: 258.4
B44: 2007-01-10 | C44: 218.5 | D44: 880.88 | E44: 342 | F44: 169.54
B45: 2007-02-07 | C45: 390.56 | D45: 1066.46 | E45: 372.42 | F45: 204.44
B46: 2007-03-07 | C46: 256.72 | D46: 843.62 | E46: 272.12 | F46: 30.8
B47: 2007-04-04 | C47: 176.7 | D47: 501.2 | E47: 171.88 | F47: 76.38
B48: 2007-05-02 | C48: 102.68 | D48: 317.36 | E48: 109.42 | F48: 51.34
B49: 2007-05-30 | C49: 51.4 | D49: 146.42 | E49: 38.1 | F49: 18.64
B50: 2007-06-27 | C50: 33.7 | D50: 80.08 | E50: 1.68 | F50: 3.74
B51: 2007-07-26 | C51: 37.37143 | D51: 90.38571 | E51: 29.29286 | F51: 12.49286
B52: 2007-08-23 | C52: 62.52071 | D52: 157.7736 | E52: 44.23714 | F52: 23.52071
B53: 2007-09-19 | C53: 122.84 | D53: 316.76 | E53: 121.74 | F53: 51.6
B54: 2007-10-17 | C54: 342.74 | D54: 842.74 | E54: 262.22 | F54: 150.16
B55: 2007-11-14 | C55: 441 | D55: 1279.46 | E55: 365.48 | F55: 195.86
B56: 2007-12-12 | C56: 849.75 | D56: 2461.21 | E56: 671.87 | F56: 322.11
B57: 2008-01-24 | C57: 1239.186667 | D57: 4255.458667 | E57: 1081.509333 | F57: 494.536
B58: 2008-02-21 | C58: 826.1723077 | D58: 2899.615385 | E58: 784.0215385 | F58: 370.9138462
B59: 2008-03-19 | C59: 355.26 | D59: 1239.34 | E59: 352.12 | F59: 161.86
B60: 2008-04-16 | C60: 216.18 | D60: 675.02 | E60: 201.28 | F60: 97.66
B61: 2008-05-14 | C61: 95.54 | D61: 317.94 | E61: 101.84 | F61: 53.78
B62: 2008-06-11 | C62: 42.4 | D62: 119.78 | E62: 42.74 | F62: 28.34
B63: 2008-07-09 | C63: 72.84 | D63: 222.62 | E63: 56.12 | F63: 23.6
B64: 2008-08-06 | C64: 48.66 | D64: 138.98 | E64: 46.1 | F64: 20.6
B65: 2008-09-03 | C65: 87.6 | D65: 183.1 | E65: 52.64 | F65: 28.6
B66: 2008-10-01 | C66: 213.96 | D66: 632.76 | E66: 185.58 | F66: 98.6
B67: 2008-10-29 | C67: 264.94 | D67: 841.78 | E67: 224.68 | F67: 108.92
B68: 2008-11-26 | C68: 445.9 | D68: 1351.58 | E68: 377.06 | F68: 179.62
B69: 2008-12-24 | C69: 1119.28 | D69: 2743.32 | E69: 674.6 | F69: 307.32
B70: 2009-01-21 | C70: 1295.32 | D70: 3065.78 | E70: 707.46 | F70: 282.98
B71: 2009-02-18 | C71: 534.74 | D71: 1619.68 | E71: 442.78 | F71: 174.32
B72: 2009-03-18 | C72: 209.2 | D72: 672.92 | E72: 202.78 | F72: 86.78
B73: 2009-04-15 | C73: 55.1 | D73: 174.22 | E73: 59.56 | F73: 26.44
B74: 2009-05-13 | C74: 33.86 | D74: 113.64 | E74: 38.7 | F74: 18.14
B75: 2009-06-10 | C75: 22 | D75: 67.28 | E75: 17.52 | F75: 8.98
B76: 2009-07-08 | C76: 18.1 | D76: 61.18 | E76: 18.32 | F76: 9.14
B77: 2009-08-05 | C77: 14.46 | D77: 38.58 | E77: 12.42 | F77: 5.98
B78: 2009-09-02 | C78: 32.76 | D78: 73.88 | E78: 22.9 | F78: 12.22
B79: 2009-09-30 | C79: 892.38 | D79: 2980.52 | E79: 941.66 | F79: 571.8
B80: 2009-10-28 | C80: 460.58 | D80: 1177.08 | E80: 322.8 | F80: 166.56
B81: 2009-11-25 | C81: 233.56 | D81: 813.18 | E81: 251.38 | F81: 137.94
B82: 2009-12-23 | C82: 701.78 | D82: 1846.8 | E82: 446.48 | F82: 188.56
B83: 2010-01-20 | C83: 723.06 | D83: 1738.92 | E83: 412.08 | F83: 147.18
B84: 2010-02-17 | C84: 680.8 | D84: 1673.4 | E84: 407.86 | F84: 136.6
B85: 2010-03-17 | C85: 263.6 | D85: 935.38 | E85: 308.34 | F85: 113.88
B86: 2010-04-14 | C86: 114.54 | D86: 351.1 | E86: 145.84 | F86: 68.88
B87: 2010-05-12 | C87: 106.82 | D87: 366.72 | E87: 131.46 | F87: 60.66
B88: 2010-06-09 | C88: 130.66 | D88: 390.4 | E88: 149.66 | F88: 74.76
B89: 2010-07-07 | C89: 72.98 | D89: 186.02 | E89: 76.72 | F89: 31.64
B90: 2010-08-04 | C90: 49.84 | D90: 143.77 | E90: 41.07 | F90: 20.69
B91: 2010-09-01 | C91: 82.84 | D91: 271.67 | E91: 93.84 | F91: 54.88
B92: 2010-09-29 | C92: 298.48 | D92: 737.94 | E92: 242.38 | F92: 128.54
B93: 2010-10-27 | C93: 154.96 | D93: 439.28 | E93: 139.64 | F93: 70.96
B94: 2010-11-24 | C94: 655.94 | D94: 1517.62 | E94: 358.42 | F94: 186.5
B95: 2010-12-22 | C95: 664.88 | D95: 1762.74 | E95: 444.56 | F95: 193.7
B96: 2011-01-19 | C96: 729.64 | D96: 1852.7 | E96: 469.72 | F96: 198.7
B97: 2011-02-16 | C97: 759.36 | D97: 1624.26 | E97: 392.5 | F97: 155.88
B98: 2011-03-16 | C98: 332.7 | D98: 966.56 | E98: 291.5 | F98: 124.04
B99: 2011-04-13 | C99: 174.68 | D99: 561.18 | E99: 152.64 | F99: 65.9
B100: 2011-05-11 | C100: 90.36 | D100: 275.96 | E100: 98.66 | F100: 48.26
B101: 2011-06-08 | C101: 153.44 | D101: 474.48 | E101: 180.44 | F101: 84.36
B102: 2011-07-06 | C102: 166.52 | D102: 487.88 | E102: 208.24 | F102: 88.16
B103: 2011-08-03 | C103: 24.3 | D103: 69.5 | E103: 22.08 | F103: 11.1
B104: 2011-08-31 | C104: 43.88 | D104: 108.08 | E104: 45.46 | F104: 24.02
B105: 2011-09-28 | C105: 147.12 | D105: 404.78 | E105: 130.4 | F105: 76.04
B106: 2011-10-26 | C106: 619.3 | D106: 1704.62 | E106: 683.82 | F106: 343.44
B107: 2011-11-23 | C107: 827.76 | D107: 2544.88 | E107: 803.26 | F107: 435.34
B108: 2011-12-21 | C108: 412.06 | D108: 1650.82 | E108: 601.74 | F108: 318.38
B109: 2012-01-18 | C109: 941.72 | D109: 2271.6 | E109: 749.66 | F109: 363.66
B110: 2012-02-15 | C110: 1006.72 | D110: 3190.76 | E110: 968.4 | F110: 416.74
B111: 2012-03-14 | C111: 272.56 | D111: 957.26 | E111: 368.26 | F111: 184.08
B112: 2012-04-11 | C112: 155.52 | D112: 540.64 | E112: 226.58 | F112: 109.46
B113: 2012-05-09 | C113: 49.94 | D113: 173.58 | E113: 94.66 | F113: 39.88
B114: 2012-06-06 | C114: 34.16 | D114: 92.12 | E114: 35.28 | F114: 12.7
B115: 2012-07-04 | C115: 38.06 | D115: 103.9 | E115: 38.22 | F115: 19.2
B116: 2012-08-01 | C116: 32.36 | D116: 78.34 | E116: 28.94 | F116: 13.2
B117: 2012-08-29 | C117: 53.76 | D117: 132.04 | E117: 43.5 | F117: 25.84
B118: 2012-09-26 | C118: 64.88 | D118: 205.48 | E118: 73.48 | F118: 45.1
B119: 2012-10-24 | C119: 272 | D119: 857.42 | E119: 292.28 | F119: 146.46
B120: 2012-11-21 | C120: 453.8 | D120: 1301.6 | E120: 445.2 | F120: 220.62
